[Event "Early-Titled-Tuesday-Blitz-March-26-2024"]
[Site "Chess.com"]
[Date "2024.03.26"]
[Round "11"]
[White "RandomNoob04"]
[Black "Joachim100x"]
[Result "1-0"]
[WhiteElo "2675"]
[BlackElo "2538"]
[TimeControl "180+1"]
[EndTime "10:06:14 PDT"]
[Termination "RandomNoob04 won by resignation"]

1. e4 {[%clk 0:03:00.9]} 1... c5 {[%clk 0:03:00]} 2. d4 {[%clk 0:03:01.2]} 2...
cxd4 {[%clk 0:02:59.8]} 3. c3 {[%clk 0:03:01.8]} 3... Nf6 {[%clk 0:02:59.9]} 4.
e5 {[%clk 0:03:02]} 4... Nd5 {[%clk 0:03:00.1]} 5. Nf3 {[%clk 0:03:02.9]} 5...
e6 {[%clk 0:03:00.3]} 6. cxd4 {[%clk 0:03:03.1]} 6... d6 {[%clk 0:03:00.7]} 7.
Bc4 {[%clk 0:03:02.2]} 7... dxe5 {[%clk 0:02:59.7]} 8. dxe5 {[%clk 0:03:02.4]}
8... Nc6 {[%clk 0:03:00]} 9. O-O {[%clk 0:03:02.8]} 9... Be7 {[%clk 0:02:59.8]}
10. Qe2 {[%clk 0:03:03]} 10... O-O {[%clk 0:02:57.7]} 11. Rd1 {[%clk 0:03:02.9]}
11... Qb6 {[%clk 0:02:57.4]} 12. Nc3 {[%clk 0:02:47.3]} 12... Nxc3 {[%clk
0:02:57]} 13. bxc3 {[%clk 0:02:48.2]} 13... Rd8 {[%clk 0:02:55.6]} 14. Be3
{[%clk 0:02:36.6]} 14... Qc7 {[%clk 0:02:55.4]} 15. Rxd8+ {[%clk 0:02:35.6]}
15... Qxd8 {[%clk 0:02:54.7]} 16. Rd1 {[%clk 0:02:15.2]} 16... Qc7 {[%clk
0:02:54.7]} 17. Qd3 {[%clk 0:02:15.9]} 17... h6 {[%clk 0:02:41.2]} 18. Qe4
{[%clk 0:02:09.9]} 18... Bf8 {[%clk 0:02:29.8]} 19. Bd3 {[%clk 0:01:51.6]} 19...
g6 {[%clk 0:02:29.9]} 20. h4 {[%clk 0:01:50.4]} 20... Bg7 {[%clk 0:01:55.2]} 21.
Bf4 {[%clk 0:01:41.2]} 21... Ne7 {[%clk 0:01:44.8]} 22. h5 {[%clk 0:01:28]}
22... Qc6 {[%clk 0:01:44.7]} 23. Qe2 {[%clk 0:01:25.9]} 23... Nd5 {[%clk
0:01:36]} 24. Bd2 {[%clk 0:01:17.2]} 24... Ne7 {[%clk 0:01:04.6]} 25. hxg6
{[%clk 0:01:12.6]} 25... fxg6 {[%clk 0:01:04.8]} 26. Be4 {[%clk 0:01:04.1]}
26... Qe8 {[%clk 0:01:04.7]} 27. Be3 {[%clk 0:00:46.8]} 27... Nf5 {[%clk
0:01:01.3]} 28. Bc5 {[%clk 0:00:44.5]} 28... Bd7 {[%clk 0:00:52.1]} 29. Bxb7
{[%clk 0:00:44.1]} 29... Rb8 {[%clk 0:00:52.4]} 30. Be4 {[%clk 0:00:44.7]} 30...
a5 {[%clk 0:00:51]} 31. Qd2 {[%clk 0:00:39.9]} 31... Bc6 {[%clk 0:00:50.1]} 32.
Bxc6 {[%clk 0:00:29.3]} 32... Qxc6 {[%clk 0:00:49.9]} 33. Bd6 {[%clk 0:00:23.7]}
33... Rd8 {[%clk 0:00:43.4]} 34. Nd4 {[%clk 0:00:23]} 34... Nxd4 {[%clk
0:00:34.9]} 35. cxd4 {[%clk 0:00:23.6]} 35... Ra8 {[%clk 0:00:28.9]} 36. Qd3
{[%clk 0:00:21.9]} 36... Kh7 {[%clk 0:00:28.4]} 37. d5 {[%clk 0:00:17.9]} 37...
exd5 {[%clk 0:00:27.7]} 38. Qxd5 {[%clk 0:00:18.8]} 38... Qc2 {[%clk 0:00:25.6]}
39. e6 {[%clk 0:00:11.5]} 39... Re8 {[%clk 0:00:20.3]} 40. e7 {[%clk 0:00:11.8]}
40... Qf5 {[%clk 0:00:12.4]} 41. Qxf5 {[%clk 0:00:11.2]} 41... gxf5 {[%clk
0:00:12.7]} 42. Bc5 {[%clk 0:00:11]} 42... Kg6 {[%clk 0:00:11.6]} 43. Rd6+
{[%clk 0:00:08.5]} 43... Kf7 {[%clk 0:00:11.4]} 44. Ra6 {[%clk 0:00:09.4]} 44...
Rc8 {[%clk 0:00:11.4]} 45. Rxa5 {[%clk 0:00:09.3]} 45... Bf6 {[%clk 0:00:10.7]}
46. g3 {[%clk 0:00:06.6]} 46... Rc7 {[%clk 0:00:08.7]} 47. Kg2 {[%clk
0:00:03.7]} 47... Rd7 {[%clk 0:00:06.5]} 48. Bb4 {[%clk 0:00:03.7]} 48... Bxe7
{[%clk 0:00:06.1]} 49. Bxe7 {[%clk 0:00:03.1]} 49... Kxe7 {[%clk 0:00:05.8]} 50.
Rxf5 {[%clk 0:00:03.8]} 50... Ra7 {[%clk 0:00:06.2]} 51. Rh5 {[%clk 0:00:03.3]}
51... Rxa2 {[%clk 0:00:05.8]} 52. Rxh6 {[%clk 0:00:03.3]} 52... Kf7 {[%clk
0:00:06.7]} 53. Rh4 {[%clk 0:00:04.1]} 53... Kg7 {[%clk 0:00:07.3]} 54. Rf4
{[%clk 0:00:05]} 54... Kg6 {[%clk 0:00:07.1]} 55. Rf3 {[%clk 0:00:05.9]} 55...
Kg5 {[%clk 0:00:07.7]} 56. Re3 {[%clk 0:00:06.3]} 56... Ra4 {[%clk 0:00:07.9]}
57. Kf3 {[%clk 0:00:05.9]} 57... Ra5 {[%clk 0:00:07.6]} 58. Re4 {[%clk
0:00:06.1]} 58... Rf5+ {[%clk 0:00:07.4]} 59. Ke3 {[%clk 0:00:05.9]} 59... Rb5
{[%clk 0:00:07.5]} 60. f3 {[%clk 0:00:03.9]} 60... Rb3+ {[%clk 0:00:07.4]} 61.
Kf2 {[%clk 0:00:04.5]} 61... Rb2+ {[%clk 0:00:07.5]} 62. Re2 {[%clk 0:00:04.9]}
62... Rb3 {[%clk 0:00:07.6]} 63. Re5+ {[%clk 0:00:04.8]} 63... Kf6 {[%clk
0:00:07.5]} 64. Ra5 {[%clk 0:00:05.1]} 64... Rc3 {[%clk 0:00:07.2]} 65. g4
{[%clk 0:00:05.5]} 65... Kg6 {[%clk 0:00:06.6]} 66. Kg3 {[%clk 0:00:06]} 66...
Rc4 {[%clk 0:00:06.6]} 67. Ra6+ {[%clk 0:00:05.7]} 67... Kg5 {[%clk 0:00:06.5]}
68. f4+ {[%clk 0:00:06.2]} 68... Rxf4 {[%clk 0:00:06.6]} 69. Ra5+ {[%clk
0:00:06.8]} 1-0

[Event "Early-Titled-Tuesday-Blitz-March-26-2024"]
[Site "Chess.com"]
[Date "2024.03.26"]
[Round "11"]
[White "WiktoriaPOL"]
[Black "iAspet"]
[Result "0-1"]
[WhiteElo "2301"]
[BlackElo "2482"]
[TimeControl "180+1"]
[EndTime "10:06:14 PDT"]
[Termination "iAspet won by checkmate"]

1. c4 {[%clk 0:02:55.7]} 1... g6 {[%clk 0:02:56.7]} 2. Nc3 {[%clk 0:02:55.1]}
2... Bg7 {[%clk 0:02:56.5]} 3. g3 {[%clk 0:02:54.6]} 3... e5 {[%clk 0:02:54.9]}
4. Bg2 {[%clk 0:02:54.5]} 4... d6 {[%clk 0:02:54.9]} 5. e3 {[%clk 0:02:50.8]}
5... Nc6 {[%clk 0:02:54.6]} 6. Nge2 {[%clk 0:02:50.3]} 6... Be6 {[%clk 0:02:51]}
7. d4 {[%clk 0:02:45.4]} 7... Bxc4 {[%clk 0:02:28.7]} 8. d5 {[%clk 0:02:44.5]}
8... Bxe2 {[%clk 0:02:28.8]} 9. Qxe2 {[%clk 0:02:36.1]} 9... Nce7 {[%clk
0:02:14]} 10. Qb5+ {[%clk 0:02:08.7]} 10... c6 {[%clk 0:01:52.8]} 11. dxc6
{[%clk 0:02:06.2]} 11... bxc6 {[%clk 0:01:53.7]} 12. Bxc6+ {[%clk 0:02:03.8]}
12... Nxc6 {[%clk 0:01:54.1]} 13. Qxc6+ {[%clk 0:02:04.4]} 13... Kf8 {[%clk
0:01:54.2]} 14. O-O {[%clk 0:01:39.7]} 14... Ne7 {[%clk 0:01:53.9]} 15. Qa6
{[%clk 0:01:33.3]} 15... Qb6 {[%clk 0:01:41.7]} 16. Qxb6 {[%clk 0:01:14]} 16...
axb6 {[%clk 0:01:41.1]} 17. Rd1 {[%clk 0:01:12.7]} 17... Nc8 {[%clk 0:01:26.3]}
18. Nb5 {[%clk 0:01:08]} 18... Ke7 {[%clk 0:01:25.8]} 19. b3 {[%clk 0:00:52.6]}
19... e4 {[%clk 0:01:20.1]} 20. Nd4 {[%clk 0:00:33.5]} 20... Kd7 {[%clk
0:01:08.4]} 21. Bb2 {[%clk 0:00:31.5]} 21... Ne7 {[%clk 0:01:08.2]} 22. a4
{[%clk 0:00:30.7]} 22... Rhc8 {[%clk 0:01:04]} 23. Ba3 {[%clk 0:00:23.8]} 23...
Be5 {[%clk 0:00:50.1]} 24. Rab1 {[%clk 0:00:21]} 24... Nd5 {[%clk 0:00:45.4]}
25. Nb5 {[%clk 0:00:15.8]} 25... Nc3 {[%clk 0:00:41.3]} 26. Nxd6 {[%clk
0:00:08.2]} 26... Rg8 {[%clk 0:00:16.7]} 27. Nb5+ {[%clk 0:00:05.2]} 27... Nxd1
{[%clk 0:00:16.5]} 28. Rxd1+ {[%clk 0:00:05.5]} 28... Ke6 {[%clk 0:00:17]} 29.
Bd6 {[%clk 0:00:04.5]} 29... Rgd8 {[%clk 0:00:16.1]} 30. Nc7+ {[%clk 0:00:03.5]}
30... Kf5 {[%clk 0:00:13.7]} 31. Nxa8 {[%clk 0:00:03.3]} 31... Rxa8 {[%clk
0:00:09.2]} 32. Bxe5 {[%clk 0:00:03.2]} 32... Kxe5 {[%clk 0:00:10.1]} 33. Rc1
{[%clk 0:00:03.4]} 33... Kd6 {[%clk 0:00:09]} 34. Rc4 {[%clk 0:00:03.4]} 34...
f5 {[%clk 0:00:09.1]} 35. Kf1 {[%clk 0:00:03.8]} 35... Rb8 {[%clk 0:00:08.7]}
36. Ke2 {[%clk 0:00:04.2]} 36... b5 {[%clk 0:00:09.2]} 37. axb5 {[%clk
0:00:04.3]} 37... Rxb5 {[%clk 0:00:09.3]} 38. b4 {[%clk 0:00:05]} 38... Rd5
{[%clk 0:00:07.4]} 39. Rd4 {[%clk 0:00:04.6]} 39... Kc6 {[%clk 0:00:06.2]} 40.
Kd2 {[%clk 0:00:04.2]} 40... Rb5 {[%clk 0:00:03.8]} 41. Kc3 {[%clk 0:00:04.5]}
41... Rb8 {[%clk 0:00:04.2]} 42. Kc4 {[%clk 0:00:04.8]} 42... Ra8 {[%clk
0:00:04.4]} 43. b5+ {[%clk 0:00:04.3]} 43... Kc7 {[%clk 0:00:05]} 44. Kc5 {[%clk
0:00:04.4]} 44... Ra2 {[%clk 0:00:04.6]} 45. b6+ {[%clk 0:00:04.7]} 45... Kc8
{[%clk 0:00:05.3]} 46. Kc6 {[%clk 0:00:03.8]} 46... Rc2+ {[%clk 0:00:05.8]} 47.
Kb5 {[%clk 0:00:03.9]} 47... Rb2+ {[%clk 0:00:06.2]} 48. Rb4 {[%clk 0:00:04.2]}
48... Rxf2 {[%clk 0:00:04.8]} 49. Rc4+ {[%clk 0:00:04.5]} 49... Kb8 {[%clk
0:00:04.7]} 50. Kc6 {[%clk 0:00:04.6]} 50... Rd2 {[%clk 0:00:03.9]} 51. Rd4
{[%clk 0:00:02]} 51... Rxd4 {[%clk 0:00:03]} 52. exd4 {[%clk 0:00:02.4]} 52...
e3 {[%clk 0:00:03.7]} 53. d5 {[%clk 0:00:03]} 53... e2 {[%clk 0:00:03.6]} 54. d6
{[%clk 0:00:03.6]} 54... e1=Q {[%clk 0:00:03.9]} 55. d7 {[%clk 0:00:04.2]} 55...
Qc3+ {[%clk 0:00:04.3]} 56. Kd6 {[%clk 0:00:04.3]} 56... Qd4+ {[%clk 0:00:04.9]}
57. Ke7 {[%clk 0:00:04.6]} 57... Qe5+ {[%clk 0:00:05.4]} 58. Kf7 {[%clk
0:00:04.1]} 58... Qd5+ {[%clk 0:00:05.7]} 59. Ke7 {[%clk 0:00:04.2]} 59... Qe5+
{[%clk 0:00:04.2]} 60. Kf7 {[%clk 0:00:04.5]} 60... Qd6 {[%clk 0:00:04.5]} 61.
Ke8 {[%clk 0:00:04.9]} 61... Qe6+ {[%clk 0:00:04.8]} 62. Kd8 {[%clk 0:00:05.3]}
62... Qxb6+ {[%clk 0:00:05]} 63. Ke7 {[%clk 0:00:05.2]} 63... Qc5+ {[%clk
0:00:05]} 64. Ke8 {[%clk 0:00:05.4]} 64... Qe5+ {[%clk 0:00:04.4]} 65. Kf8
{[%clk 0:00:05.7]} 65... Kc7 {[%clk 0:00:04.1]} 66. Kf7 {[%clk 0:00:05.1]} 66...
Kxd7 {[%clk 0:00:04.1]} 67. Kg8 {[%clk 0:00:05.4]} 67... Qe7 {[%clk 0:00:04]}
68. g4 {[%clk 0:00:04]} 68... f4 {[%clk 0:00:03.7]} 69. h4 {[%clk 0:00:03.9]}
69... f3 {[%clk 0:00:04.2]} 70. h5 {[%clk 0:00:04.5]} 70... f2 {[%clk
0:00:04.6]} 71. hxg6 {[%clk 0:00:05.1]} 71... hxg6 {[%clk 0:00:05.1]} 72. g5
{[%clk 0:00:05.7]} 72... f1=Q {[%clk 0:00:05.8]} 73. Kh8 {[%clk 0:00:06.1]}
73... Qff8# {[%clk 0:00:06.4]} 0-1

[Event "Early-Titled-Tuesday-Blitz-March-26-2024"]
[Site "Chess.com"]
[Date "2024.03.26"]
[Round "11"]
[White "rhwr"]
[Black "gorgeous1083"]
[Result "0-1"]
[WhiteElo "2302"]
[BlackElo "2076"]
[TimeControl "180+1"]
[EndTime "10:06:27 PDT"]
[Termination "gorgeous1083 won on time"]

1. e4 {[%clk 0:03:00.1]} 1... e6 {[%clk 0:02:58.1]} 2. Nf3 {[%clk 0:03:00.3]}
2... d5 {[%clk 0:02:58.2]} 3. e5 {[%clk 0:03:01]} 3... c5 {[%clk 0:02:58]} 4. b4
{[%clk 0:03:01.5]} 4... Nc6 {[%clk 0:02:57.3]} 5. b5 {[%clk 0:02:57.6]} 5...
Nce7 {[%clk 0:02:54.9]} 6. c3 {[%clk 0:02:56.7]} 6... d4 {[%clk 0:02:35]} 7. Ba3
{[%clk 0:02:39.3]} 7... dxc3 {[%clk 0:02:27]} 8. Nxc3 {[%clk 0:02:37.4]} 8... b6
{[%clk 0:02:27]} 9. d4 {[%clk 0:02:02]} 9... Nf5 {[%clk 0:02:23.2]} 10. dxc5
{[%clk 0:01:53.4]} 10... Qxd1+ {[%clk 0:02:18.2]} 11. Rxd1 {[%clk 0:01:51.7]}
11... Bxc5 {[%clk 0:02:17.6]} 12. Bxc5 {[%clk 0:01:50.8]} 12... bxc5 {[%clk
0:02:18.5]} 13. Ne4 {[%clk 0:01:51.1]} 13... Nge7 {[%clk 0:02:05.3]} 14. Nxc5
{[%clk 0:01:49.9]} 14... O-O {[%clk 0:01:54.5]} 15. Bd3 {[%clk 0:01:48.7]} 15...
Rb8 {[%clk 0:01:50]} 16. a4 {[%clk 0:01:44.2]} 16... Bb7 {[%clk 0:01:47.8]} 17.
Nd7 {[%clk 0:01:42.6]} 17... Rfd8 {[%clk 0:01:31.3]} 18. Nxb8 {[%clk 0:01:39.7]}
18... Rxb8 {[%clk 0:01:32.2]} 19. O-O {[%clk 0:01:36.5]} 19... Rc8 {[%clk
0:01:29.9]} 20. Bxf5 {[%clk 0:01:33.6]} 20... Nxf5 {[%clk 0:01:29.4]} 21. Rd7
{[%clk 0:01:33.7]} 21... Bxf3 {[%clk 0:01:28.7]} 22. gxf3 {[%clk 0:01:33.9]}
22... h5 {[%clk 0:01:20.9]} 23. Rfd1 {[%clk 0:01:29.3]} 23... Rc4 {[%clk
0:01:10.6]} 24. Rxa7 {[%clk 0:01:25.1]} 24... Nh4 {[%clk 0:01:09.7]} 25. Rb1
{[%clk 0:01:11]} 25... Nxf3+ {[%clk 0:01:01.3]} 26. Kg2 {[%clk 0:01:10]} 26...
Nh4+ {[%clk 0:00:56.1]} 27. Kf1 {[%clk 0:01:08.2]} 27... Nf3 {[%clk 0:00:53.6]}
28. Rb2 {[%clk 0:01:03.5]} 28... Rc1+ {[%clk 0:00:44.2]} 29. Kg2 {[%clk
0:01:01.6]} 29... Nh4+ {[%clk 0:00:21.3]} 30. Kh3 {[%clk 0:01:01.6]} 30... g5
{[%clk 0:00:19.3]} 31. Rb3 {[%clk 0:00:46.1]} 31... Nf5 {[%clk 0:00:13.3]} 32.
Kg2 {[%clk 0:00:28.1]} 32... Nh4+ {[%clk 0:00:13.6]} 33. Kh3 {[%clk 0:00:20.1]}
33... Nf5 {[%clk 0:00:13.3]} 34. f3 {[%clk 0:00:13.9]} 34... Rg1 {[%clk
0:00:12.1]} 35. Rb4 {[%clk 0:00:13.4]} 35... Kg7 {[%clk 0:00:08.7]} 36. b6
{[%clk 0:00:13]} 36... Rf1 {[%clk 0:00:07.1]} 37. Kg2 {[%clk 0:00:11.1]} 37...
Ne3+ {[%clk 0:00:05.6]} 38. Kg3 {[%clk 0:00:10.4]} 38... h4+ {[%clk 0:00:05.8]}
39. Rxh4 {[%clk 0:00:08.3]} 39... gxh4+ {[%clk 0:00:05.9]} 40. Kf4 {[%clk
0:00:07.2]} 40... Nd5+ {[%clk 0:00:05.4]} 41. Ke4 {[%clk 0:00:06.8]} 41... Re1+
{[%clk 0:00:04.9]} 42. Kd3 {[%clk 0:00:05.8]} 42... Nxb6 {[%clk 0:00:05.1]} 43.
a5 {[%clk 0:00:05.7]} 43... Nd5 {[%clk 0:00:05.2]} 44. Ra8 {[%clk 0:00:05.3]}
44... Ra1 {[%clk 0:00:04.1]} 45. a6 {[%clk 0:00:05.3]} 45... Rxa6 {[%clk
0:00:03.9]} 46. Kc4 {[%clk 0:00:06.2]} 46... Rc6+ {[%clk 0:00:03.3]} 47. Kb5
{[%clk 0:00:05.7]} 47... Rc3 {[%clk 0:00:03.6]} 48. Ra4 {[%clk 0:00:04.5]} 48...
Rxf3 {[%clk 0:00:03.7]} 49. Rxh4 {[%clk 0:00:04.8]} 49... Kf8 {[%clk 0:00:03.8]}
50. Rg4 {[%clk 0:00:04.9]} 50... Ke7 {[%clk 0:00:04.2]} 51. h4 {[%clk
0:00:05.3]} 51... Rb3+ {[%clk 0:00:04.5]} 52. Kc6 {[%clk 0:00:04.2]} 52... Ne3
{[%clk 0:00:04.5]} 53. Rg3 {[%clk 0:00:03.9]} 53... Rc3+ {[%clk 0:00:03.5]} 54.
Kb7 {[%clk 0:00:03.4]} 54... Nd5 {[%clk 0:00:02.8]} 55. h5 {[%clk 0:00:03.1]}
55... Rxg3 {[%clk 0:00:02.6]} 56. h6 {[%clk 0:00:02.8]} 56... Rh3 {[%clk
0:00:03.5]} 57. h7 {[%clk 0:00:03]} 57... Rh6 {[%clk 0:00:04.4]} 58. h8=Q {[%clk
0:00:02.4]} 58... Rxh8 {[%clk 0:00:05.3]} 59. Kc6 {[%clk 0:00:02.2]} 59... Rd8
{[%clk 0:00:06.2]} 60. Kc5 {[%clk 0:00:02.5]} 60... Rd7 {[%clk 0:00:07.1]} 61.
Kd4 {[%clk 0:00:02.9]} 61... Kd8 {[%clk 0:00:08]} 62. Ke4 {[%clk 0:00:02.8]}
62... Kc7 {[%clk 0:00:08.9]} 63. Kf3 {[%clk 0:00:02.7]} 63... Kc6 {[%clk
0:00:09.8]} 64. Kg4 {[%clk 0:00:03]} 64... Rb7 {[%clk 0:00:10.7]} 65. Kh5 {[%clk
0:00:03.4]} 65... Rb4 {[%clk 0:00:11.6]} 66. Kh6 {[%clk 0:00:03.6]} 66... Rf4
{[%clk 0:00:11.8]} 67. Kg7 {[%clk 0:00:03.9]} 67... Kc5 {[%clk 0:00:12.1]} 68.
Kf8 {[%clk 0:00:04]} 68... Kd4 {[%clk 0:00:13]} 69. Ke8 {[%clk 0:00:04.3]} 69...
Kxe5 {[%clk 0:00:13.4]} 70. Kd7 {[%clk 0:00:04.6]} 70... Nf6+ {[%clk 0:00:13.8]}
71. Kc6 {[%clk 0:00:05.5]} 71... Rd4 {[%clk 0:00:14.2]} 0-1

[Event "Early-Titled-Tuesday-Blitz-March-26-2024"]
[Site "Chess.com"]
[Date "2024.03.26"]
[Round "11"]
[White "wonderfultime"]
[Black "SpeedofLight0"]
[Result "1/2-1/2"]
[WhiteElo "3007"]
[BlackElo "3071"]
[TimeControl "180+1"]
[EndTime "10:06:54 PDT"]
[Termination "Game drawn - insufficient material"]

1. d4 {[%clk 0:03:00.9]} 1... d6 {[%clk 0:02:58.3]} 2. e4 {[%clk 0:03:00.7]}
2... g6 {[%clk 0:02:55.9]} 3. Nf3 {[%clk 0:03:00.5]} 3... Bg7 {[%clk 0:02:55.9]}
4. Bc4 {[%clk 0:03:01.1]} 4... Nc6 {[%clk 0:02:55.9]} 5. O-O {[%clk 0:02:57.1]}
5... Nf6 {[%clk 0:02:54.4]} 6. Re1 {[%clk 0:02:57.4]} 6... O-O {[%clk
0:02:54.3]} 7. Nbd2 {[%clk 0:02:49.8]} 7... e5 {[%clk 0:02:48.7]} 8. dxe5 {[%clk
0:02:42.7]} 8... Nxe5 {[%clk 0:02:49.6]} 9. Nxe5 {[%clk 0:02:37.6]} 9... dxe5
{[%clk 0:02:50.5]} 10. c3 {[%clk 0:02:36]} 10... Qe7 {[%clk 0:02:47.8]} 11. a4
{[%clk 0:02:31.9]} 11... Rd8 {[%clk 0:02:47]} 12. Qc2 {[%clk 0:02:27.7]} 12...
Bh6 {[%clk 0:02:42.3]} 13. Nf1 {[%clk 0:02:24]} 13... Bxc1 {[%clk 0:02:43.2]}
14. Raxc1 {[%clk 0:02:24.6]} 14... Be6 {[%clk 0:02:42.8]} 15. Ne3 {[%clk
0:02:04.1]} 15... Bxc4 {[%clk 0:02:36.7]} 16. Nxc4 {[%clk 0:02:05]} 16... Qc5
{[%clk 0:02:37.4]} 17. Ne3 {[%clk 0:01:59.6]} 17... Qc6 {[%clk 0:02:36]} 18. f3
{[%clk 0:01:48.7]} 18... Qb6 {[%clk 0:02:31.7]} 19. Kh1 {[%clk 0:01:36.6]} 19...
Rd7 {[%clk 0:02:30.2]} 20. Nc4 {[%clk 0:01:27.4]} 20... Qe6 {[%clk 0:02:29.5]}
21. b3 {[%clk 0:01:22.3]} 21... Rad8 {[%clk 0:02:27.4]} 22. Rcd1 {[%clk
0:01:21.5]} 22... h5 {[%clk 0:02:19.4]} 23. h4 {[%clk 0:01:15.9]} 23... Kg7
{[%clk 0:02:11]} 24. Rxd7 {[%clk 0:01:13]} 24... Rxd7 {[%clk 0:02:11.9]} 25. Qf2
{[%clk 0:01:13.4]} 25... a6 {[%clk 0:02:06]} 26. Qc5 {[%clk 0:01:11.8]} 26...
Re7 {[%clk 0:02:04.5]} 27. Rd1 {[%clk 0:01:11.3]} 27... b6 {[%clk 0:01:56.5]}
28. Qf2 {[%clk 0:01:05.8]} 28... b5 {[%clk 0:01:56]} 29. axb5 {[%clk 0:01:05.9]}
29... axb5 {[%clk 0:01:56.9]} 30. Na5 {[%clk 0:01:00.9]} 30... Rd7 {[%clk
0:01:52.4]} 31. Rxd7 {[%clk 0:00:53.6]} 31... Nxd7 {[%clk 0:01:53.3]} 32. b4
{[%clk 0:00:52.2]} 32... Qd6 {[%clk 0:01:53.2]} 33. Kh2 {[%clk 0:00:50.1]} 33...
Qd3 {[%clk 0:01:52.2]} 34. Qe1 {[%clk 0:00:40.7]} 34... Nb6 {[%clk 0:01:48.1]}
35. Qc1 {[%clk 0:00:36.2]} 35... Qe2 {[%clk 0:01:05.8]} 36. Kg3 {[%clk
0:00:33.7]} 36... Na4 {[%clk 0:00:47.6]} 37. Nc6 {[%clk 0:00:33.4]} 37... f6
{[%clk 0:00:41.4]} 38. Ne7 {[%clk 0:00:32.1]} 38... Nb2 {[%clk 0:00:36.4]} 39.
Nd5 {[%clk 0:00:30.8]} 39... Nd3 {[%clk 0:00:35.3]} 40. Qg1 {[%clk 0:00:25.6]}
40... c6 {[%clk 0:00:28.4]} 41. Qa7+ {[%clk 0:00:18.9]} 41... Kh6 {[%clk
0:00:28.7]} 42. Qe3+ {[%clk 0:00:16]} 42... Qxe3 {[%clk 0:00:29]} 43. Nxe3
{[%clk 0:00:16.9]} 43... Kg7 {[%clk 0:00:17.8]} 44. Kh2 {[%clk 0:00:11.9]} 44...
Kf7 {[%clk 0:00:12.7]} 45. Kg1 {[%clk 0:00:12.4]} 45... g5 {[%clk 0:00:11.3]}
46. hxg5 {[%clk 0:00:08.4]} 46... fxg5 {[%clk 0:00:12.2]} 47. Kf1 {[%clk
0:00:09.1]} 47... h4 {[%clk 0:00:09.6]} 48. Ke2 {[%clk 0:00:09.3]} 48... Nf4+
{[%clk 0:00:09.9]} 49. Kf2 {[%clk 0:00:09.7]} 49... Ke6 {[%clk 0:00:08.5]} 50.
Ng4 {[%clk 0:00:07.6]} 50... Nd3+ {[%clk 0:00:08.3]} 51. Ke2 {[%clk 0:00:08.3]}
51... Nb2 {[%clk 0:00:07.1]} 52. Nf2 {[%clk 0:00:07.1]} 52... Na4 {[%clk
0:00:05.5]} 53. Kd3 {[%clk 0:00:07.3]} 53... Nb2+ {[%clk 0:00:05.2]} 54. Ke2
{[%clk 0:00:08]} 54... Nc4 {[%clk 0:00:05.1]} 55. Nh3 {[%clk 0:00:08.1]} 55...
Kf6 {[%clk 0:00:05.6]} 56. Nf2 {[%clk 0:00:08.8]} 56... Nb6 {[%clk 0:00:05.6]}
57. Nd1 {[%clk 0:00:07.6]} 57... Nd7 {[%clk 0:00:04.9]} 58. Ne3 {[%clk 0:00:08]}
58... Nf8 {[%clk 0:00:05.3]} 59. Kf2 {[%clk 0:00:06.9]} 59... Ng6 {[%clk
0:00:05.2]} 60. c4 {[%clk 0:00:07.2]} 60... bxc4 {[%clk 0:00:02.1]} 61. Nxc4
{[%clk 0:00:08.1]} 61... Nf4 {[%clk 0:00:02.9]} 62. Na5 {[%clk 0:00:08.6]} 62...
Nd3+ {[%clk 0:00:03.2]} 63. Ke3 {[%clk 0:00:09.4]} 63... Nxb4 {[%clk 0:00:04.1]}
64. Kd2 {[%clk 0:00:10.2]} 64... c5 {[%clk 0:00:03.3]} 65. Nb7 {[%clk
0:00:09.4]} 65... Na6 {[%clk 0:00:02.7]} 66. Kd3 {[%clk 0:00:08.5]} 66... g4
{[%clk 0:00:02.7]} 67. fxg4 {[%clk 0:00:07.4]} 67... Kg5 {[%clk 0:00:03.3]} 68.
Ke3 {[%clk 0:00:04.2]} 68... Kxg4 {[%clk 0:00:03.3]} 69. Nd6 {[%clk 0:00:04.9]}
69... Nb4 {[%clk 0:00:02.9]} 70. Nc4 {[%clk 0:00:04.6]} 70... Nc6 {[%clk
0:00:03.2]} 71. Nd2 {[%clk 0:00:04.2]} 71... Kg3 {[%clk 0:00:02.9]} 72. Nf3
{[%clk 0:00:05]} 72... c4 {[%clk 0:00:03.5]} 73. Kd2 {[%clk 0:00:04]} 73... Nd4
{[%clk 0:00:03.2]} 74. Nxe5 {[%clk 0:00:04.2]} 74... Kxg2 {[%clk 0:00:03.4]} 75.
Ng6 {[%clk 0:00:04.8]} 75... h3 {[%clk 0:00:02.7]} 76. Nf4+ {[%clk 0:00:05.1]}
76... Kf3 {[%clk 0:00:03.2]} 77. Nxh3 {[%clk 0:00:05.4]} 77... Kxe4 {[%clk
0:00:04]} 78. Kc3 {[%clk 0:00:05.2]} 78... Kd5 {[%clk 0:00:04.6]} 79. Nf4+
{[%clk 0:00:05.8]} 79... Kc5 {[%clk 0:00:05]} 80. Nd3+ {[%clk 0:00:06.6]} 80...
Kd5 {[%clk 0:00:05.1]} 81. Nf4+ {[%clk 0:00:06.8]} 81... Kc5 {[%clk 0:00:05]}
82. Nd3+ {[%clk 0:00:07.5]} 82... cxd3 {[%clk 0:00:05.7]} 83. Kxd3 {[%clk
0:00:08]} 1/2-1/2